fUSD/lending_fUSD_20250325
["ID","MTS","AMOUNT","RATE_DAILY","PERIOD"]
[356634925,1742868632632,-782.46933898,0.000119,2]
[356634926,1742868632642,-7222.0757,0.000119,2]
[356634927,1742868632651,-3541.04547455,0.000119,2]
[356634928,1742868632661,-346.84143699,0.000119,2]
[356634929,1742868632670,-220.96599915,0.0001199,2]
[356634930,1742868632679,-272.85243653,0.00011999,2]
[356634931,1742868632688,-31659.54805026,0.00012,2]
[356634932,1742868632699,-6043.67082095,0.00012,2]
[356634933,1742868632710,-1579.13148732,0.00012,2]
[356634934,1742868632721,-531.14851368,0.00012,2]
[356634950,1742868636928,246.59791514,0.00025,60]
[356634952,1742868638208,-3969.47382019,0.00012,2]
[356634953,1742868638219,-424.22919954,0.00012,2]
[356634954,1742868638262,-10233.470495,0.00012,2]
[356634955,1742868638274,-1825.60372789,0.00012,2]
[356634956,1742868638286,-417.28064259,0.00012,2]
[356634957,1742868638368,-830.49,0.00012,2]
[356634958,1742868638514,-133967.54811533,0.00012,2]
[356634959,1742868638526,-2503.56084442,0.00012,2]
[356635146,1742868640524,-269.40179999,0.00012,2]
[356635148,1742868640536,-870.6193216,0.00012,2]
[356635157,1742868640630,-969412.22438978,0.00012,2]
[356635159,1742868640639,-200.0,0.00012,2]
[356635161,1742868640649,-191.12236195,0.00012242,2]
[356635163,1742868640659,-227.03086004,0.00014,2]
[356635165,1742868640668,-503.60816599,0.0001454,2]
[356635167,1742868640677,-155.3710727,0.00015371,2]
[356635168,1742868640686,-196.77,0.00015647,2]
[356635170,1742868640695,-782.46933896,0.00016011,2]
[356635172,1742868640705,-3541.04547454,0.00016011,2]
[356635174,1742868640715,-153.46128748,0.00016414,2]
[356635176,1742868640723,-160.44783532,0.00016743,2]
[356635178,1742868640732,-500.0,0.00016743,2]
[356635179,1742868640741,-155.17549391,0.00016743,2]
[356635181,1742868640750,-152.36451018,0.00016743,2]
[356635183,1742868640759,-499.62999776,0.00016743,2]
[356635185,1742868640767,-151.47883829,0.00016743,2]
[356635187,1742868640776,-372.44573211,0.00017491,2]
[356635188,1742868640785,-355.90983419,0.00018574,2]
[356635190,1742868640794,-814.4,0.00018701,2]
[356635192,1742868640803,-17647.0217009,0.00019,2]
[356635194,1742868640812,-150.99,0.00019339,2]
[356635196,1742868640821,-1000.0,0.0001939,2]
[356635198,1742868640830,-4271.41,0.000195,2]
[356635199,1742868640839,-405.13,0.000195,2]
[356635201,1742868640848,-2751.0,0.00019516,2]
[356635203,1742868640857,-150.0,0.00019564,2]
[356635205,1742868640867,-216.16,0.00019565,2]
[356635207,1742868640876,-23900.0,0.00019823,2]
[356635209,1742868640885,-200.0,0.00019823,2]
[356635211,1742868640894,-732.69,0.00019848,2]
[356635212,1742868640903,-2000.0,0.0002,4]
[356635214,1742868640912,-151.76,0.0002,2]
[356635216,1742868640921,-151.76,0.0002,2]
[356635218,1742868640930,-782.46933896,0.00020122,2]
[356635219,1742868640939,-3541.04547454,0.00020122,2]
[356635220,1742868640948,-250.0,0.00020163,2]
[356635221,1742868640957,-167.54,0.00020768,2]
[356635222,1742868640966,-661.0,0.00020777,2]
[356635223,1742868640975,-167.25,0.00020815,2]
[356635224,1742868640984,-814.4,0.00020965,2]
[356635226,1742868640993,-1000.0,0.00021814,2]
[356635228,1742868641002,-171.00060326,0.000219,2]
[356635230,1742868641011,-216.16,0.0002201,2]
[356635232,1742868641020,-237.81339502,0.00022222,2]
[356635233,1742868641029,-814.4,0.00023229,2]
[356635235,1742868641039,-502.0,0.00023699,2]
[356635237,1742868641047,-168.4,0.00023836,2]
[356635239,1742868641056,-782.46933896,0.00024233,2]
[356635241,1742868641066,-3541.04547454,0.00024233,2]
[356635242,1742868641075,-1000.0,0.00024238,2]
[356635244,1742868641085,-216.16,0.00024456,2]
[356635246,1742868641094,-285.62,0.00024658,2]
[356635248,1742868641103,-226189.878691,0.000248,2]
[356635250,1742868641114,-151.76,0.0002489,2]
[356635252,1742868641123,-384745.668867,0.000249,2]
[356635253,1742868641133,-2000.0,0.00025,4]
[356635255,1742868641142,-169.43,0.0002521,2]
[356635257,1742868641153,-346.84143699,0.00025233,2]
[356635259,1742868641162,-814.4,0.00025493,2]
[356635261,1742868641171,-1000.0,0.00026662,2]
[356635262,1742868641180,-373.76,0.00026849,2]
[356635264,1742868641190,-163.17,0.00026849,2]
[356635267,1742868641201,-216.16,0.00026901,120]
[356635270,1742868641210,-814.4,0.00027757,2]
[356635272,1742868641219,-732.69,0.00027788,2]
[356635273,1742868641230,-227.03086002,0.000279,4]
[356635275,1742868641239,-782.46933896,0.00028344,2]
[356635277,1742868641249,-3541.04547454,0.00028344,2]
[356635279,1742868641259,-1000.0,0.00029086,2]
[356635281,1742868641268,-216.16,0.00029347,120]
[356635282,1742868641278,-9581.3,0.00029815,2]
[356635284,1742868641291,-814.4,0.00030021,2]
[356635286,1742868641300,-1389.20008454,0.00030581,3]
[356635288,1742868641309,-7500.0,0.0003158,30]
[356635290,1742868641320,-7381.72,0.0003158,30]
[356635292,1742868641329,-880.271,0.0003163,2]
[356635294,1742868641338,-171.00060326,0.000319,2]
[356635295,1742868641347,-814.4,0.00032285,2]
[356635297,1742868641357,-782.46933896,0.00032456,2]
[356635299,1742868641368,-3541.04547454,0.00032456,2]
[356635301,1742868641377,-373.76,0.00032646,2]
[356635303,1742868641386,-814.4,0.00034549,2]
[356635305,1742868641396,-150.0,0.00035616,2]
[356635307,1742868641406,-1085.146,0.0003632,44]
[356635308,1742868641415,-782.46933896,0.00036567,2]
[356635309,1742868641424,-3541.04547454,0.00036567,2]
[356635310,1742868641434,-150.0,0.00036664,2]
[356635311,1742868641443,-814.4,0.00036813,2]
[356635312,1742868641452,-284.58472506,0.000372,103]
[356635313,1742868641462,-505.0,0.00037218,5]
[356635314,1742868641472,-150.0,0.00037712,2]
[356635315,1742868641481,-373.76,0.00038443,2]
[356635316,1742868641491,-346.84143699,0.00038567,2]
[356635317,1742868641501,-150.0,0.00038759,2]
[356635318,1742868641511,-151.76,0.0003889,2]
[356635319,1742868641520,-186.246452,0.000389,14]
[356635320,1742868641529,-100292.16741108,0.000389,7]
[356635321,1742868641539,-814.4,0.00039076,2]
[356635322,1742868641548,-150.0,0.00039807,2]
[356635323,1742868641557,-782.46933896,0.00040678,15]
[356635324,1742868641567,-3541.04547454,0.00040678,15]
[356635325,1742868641577,-150.0,0.00040854,2]
[356635326,1742868641586,-607.0,0.00040904,2]
[356635328,1742868641595,-156.0,0.00041096,30]
[356635329,1742868641604,-814.4,0.0004134,2]
[356635331,1742868641613,-171.00060326,0.000419,5]
[356635333,1742868641622,-150.0,0.00041902,2]
[356635335,1742868641631,-689.54,0.00042,120]
[356635337,1742868641640,-264.49,0.00042,120]
[356635339,1742868641649,-235.34,0.00042,120]
[356635341,1742868641658,-227.03086002,0.000429,9]
[356635343,1742868641667,-150.0,0.00042949,2]
[356635345,1742868641677,-814.4,0.00043604,2]
[356635346,1742868641687,-150.0,0.00043997,2]
[356635347,1742868641696,-578.7454471,0.00044,30]
[356635348,1742868641705,-373.76,0.00044239,2]
[356635349,1742868641715,-586.96549177,0.0004462,2]
[356635350,1742868641724,-782.46933896,0.00044789,15]
[356635351,1742868641733,-3541.04547454,0.00044789,15]
[356635352,1742868641742,-6243.21,0.000449,120]
[356635353,1742868641751,-167.17777778,0.00045,120]
[356635354,1742868641761,-359.67,0.00045,120]
[356635355,1742868641770,-150.0,0.00045044,2]
[356635356,1742868641779,-814.4,0.00045868,2]
[356635357,1742868641789,-851.0,0.00045988,30]
[356635358,1742868641799,-150.0,0.00046092,2]
[356635359,1742868641809,-851.0,0.00046462,30]
[356635360,1742868641818,-150.0,0.000465,120]
[356635361,1742868641827,-155.55734,0.000465,120]
[356635362,1742868641836,-582.72260753,0.00046575,120]
[356635363,1742868641845,-500.0,0.00046575,120]
[356635364,1742868641855,-155.50550797,0.00046575,120]
[356635365,1742868641864,-506.39,0.00046575,120]
[356635366,1742868641875,-470.91355905,0.00046575,120]
[356635367,1742868641884,-521.8,0.00046575,120]
[356635368,1742868641893,-500.0,0.00046575,120]
[356635369,1742868641903,-500.0,0.00046575,120]
[356635370,1742868641912,-531.14,0.00046575,120]
[356635371,1742868641921,-228.26685656,0.00046575,120]
[356635372,1742868641931,-179.66945346,0.00046575,12]
[356635373,1742868641940,-500.0,0.00046575,120]
[356635374,1742868641949,-182.78605406,0.00046575,120]
[356635375,1742868641958,-367.72520924,0.00046575,120]
[356635376,1742868641967,-500.0,0.00046575,120]
[356635377,1742868641976,-500.0,0.00046575,120]
[356635378,1742868641985,-304.95849646,0.00046575,120]
[356635379,1742868641995,-176.0412398,0.00046575,120]
[356635380,1742868642003,-500.0,0.00046575,120]
[356635381,1742868642013,-500.0,0.00046575,120]
[356635382,1742868642022,-183.15006163,0.00046575,120]
[356635383,1742868642031,-216.68033218,0.00046575,120]
[356635384,1742868642040,-500.0,0.00046575,120]
[356635385,1742868642049,-500.0,0.00046575,120]
[356635386,1742868642059,-2792.72,0.00046575,120]
[356635387,1742868642068,-155.67246063,0.00046575,120]
[356635388,1742868642077,-289.84169646,0.00046575,120]
[356635389,1742868642086,-162.77817605,0.00046575,120]
[356635390,1742868642095,-186.99867339,0.00046575,120]
[356635391,1742868642105,-500.0,0.00046575,120]
[356635392,1742868642114,-500.0,0.00046575,120]
[356635393,1742868642123,-157.85094912,0.00046575,120]
[356635394,1742868642132,-191.31860948,0.00046575,120]
[356635395,1742868642142,-379.66372397,0.00046575,120]
[356635396,1742868642153,-500.0,0.00046575,120]
[356635397,1742868642163,-350.0,0.00046575,120]
[356635398,1742868642172,-570.50642153,0.00046575,120]
[356635399,1742868642182,-267.14951983,0.00046575,120]
[356635400,1742868642191,-174.80354403,0.00046575,120]
[356635401,1742868642202,-500.0,0.00046575,120]
[356635402,1742868642211,-1619.85,0.00046575,2]
[356635403,1742868642220,-328.41154824,0.00046575,120]
[356635404,1742868642230,-1283.0,0.00046575,120]
[356635405,1742868642239,-254.69826087,0.00046575,100]
[356635406,1742868642248,-500.0,0.00046575,120]
[356635407,1742868642258,-516.36,0.00046575,120]
[356635408,1742868642267,-436.32457842,0.00046575,120]
[356635409,1742868642277,-500.0,0.00046575,120]
[356635410,1742868642287,-500.0,0.00046849,120]
[356635411,1742868642296,-506.39,0.00046849,120]
[356635412,1742868642305,-521.8,0.00046849,120]
[356635413,1742868642315,-500.0,0.00046849,120]
[356635414,1742868642325,-500.0,0.00046849,120]
[356635415,1742868642335,-531.14,0.00046849,120]
[356635416,1742868642344,-427.23476018,0.00046849,120]
[356635417,1742868642353,-500.0,0.00046849,120]
[356635418,1742868642362,-500.0,0.00046849,120]
[356635419,1742868642371,-500.0,0.00046849,120]
[356635420,1742868642380,-500.0,0.00046849,120]
[356635421,1742868642391,-500.0,0.00046849,120]
[356635422,1742868642401,-500.0,0.00046849,120]
[356635423,1742868642410,-2792.72,0.00046849,120]
[356635424,1742868642419,-500.0,0.00046849,120]
[356635425,1742868642428,-213.10994336,0.00046849,120]
[356635426,1742868642438,-500.0,0.00046849,120]
[356635427,1742868642447,-350.0,0.00046849,120]
[356635428,1742868642455,-519.25134432,0.00046849,120]
[356635429,1742868642465,-1619.85,0.00046849,2]
[356635430,1742868642474,-1283.0,0.00046849,120]
[356635431,1742868642483,-511.54069547,0.00046849,120]
[356635432,1742868642492,-516.36,0.00046849,120]
[356635433,1742868642501,-500.0,0.00046849,120]
[356635434,1742868642511,-851.0,0.00046937,30]
[356635435,1742868642520,-151.2543746,0.00046965,4]
[356635436,1742868642530,-382.36587475,0.00047123,120]
[356635437,1742868642538,-506.39,0.00047123,120]
[356635438,1742868642547,-521.8,0.00047123,120]
[356635439,1742868642557,-500.0,0.00047123,120]
[356635440,1742868642566,-270.6111216,0.00047123,120]
[356635441,1742868642575,-531.14,0.00047123,120]
[356635442,1742868642585,-500.0,0.00047123,120]
[356635443,1742868642594,-500.0,0.00047123,120]
[356635444,1742868642603,-195.23786077,0.00047123,120]
[356635445,1742868642612,-500.0,0.00047123,120]
[356635446,1742868642621,-500.0,0.00047123,120]
[356635447,1742868642630,-500.0,0.00047123,120]
[356635448,1742868642640,-2792.72,0.00047123,120]
[356635449,1742868642649,-500.0,0.00047123,120]
[356635450,1742868642658,-183.19244083,0.00047123,120]
[356635451,1742868642667,-350.0,0.00047123,120]
[356635452,1742868642677,-1619.85,0.00047123,2]
[356635453,1742868642686,-1283.0,0.00047123,120]
[356635454,1742868642695,-516.36,0.00047123,120]
[356635455,1742868642705,-445.55424478,0.00047123,120]
[356635456,1742868642714,-150.0,0.00047139,2]
[356635457,1742868642724,-506.39,0.00047397,120]
[356635458,1742868642733,-521.8,0.00047397,120]
[356635459,1742868642742,-514.67886705,0.00047397,120]
[356635460,1742868642750,-531.14,0.00047397,120]
[356635461,1742868642760,-500.0,0.00047397,120]
[356635462,1742868642768,-500.0,0.00047397,120]
[356635463,1742868642777,-500.0,0.00047397,120]
[356635464,1742868642786,-500.0,0.00047397,120]
[356635465,1742868642795,-500.0,0.00047397,120]
[356635466,1742868642804,-2792.72,0.00047397,120]
[356635467,1742868642813,-500.0,0.00047397,120]
[356635468,1742868642822,-350.0,0.00047397,120]
[356635469,1742868642831,-1619.85,0.00047397,2]
[356635470,1742868642840,-1283.0,0.00047397,120]
[356635471,1742868642849,-516.36,0.00047397,120]
[356635472,1742868642859,-851.0,0.00047411,30]
[356635473,1742868642868,-265.64407857,0.00047411,30]
[356635474,1742868642877,-199.03345463,0.00047488,120]
[356635475,1742868642887,-130000.0,0.000475,120]
[356635476,1742868642897,-506.39,0.00047671,120]
[356635477,1742868642905,-521.8,0.00047671,120]
[356635478,1742868642914,-531.14,0.00047671,120]
[356635479,1742868642923,-464.76138095,0.00047671,120]
[356635480,1742868642932,-500.0,0.00047671,120]
[356635481,1742868642941,-500.0,0.00047671,120]
[356635482,1742868642950,-500.0,0.00047671,120]
[356635483,1742868642959,-500.0,0.00047671,120]
[356635484,1742868642969,-2792.72,0.00047671,120]
[356635485,1742868642978,-576.980694,0.00047671,120]
[356635486,1742868642987,-462.06965989,0.00047671,120]
[356635488,1742868642997,-1619.85,0.00047671,2]
[356635489,1742868643006,-1283.0,0.00047671,120]
[356635490,1742868643015,-516.36,0.00047671,120]
[356635491,1742868643025,-205.40286,0.000477,120]
[356635492,1742868643035,-851.0,0.00047885,30]
[356635494,1742868643044,-150.0,0.0004791,120]
[356635496,1742868643053,-506.39,0.00047945,120]
[356635498,1742868643063,-521.8,0.00047945,120]
[356635499,1742868643072,-531.14,0.00047945,120]
[356635500,1742868643080,-500.0,0.00047945,120]
[356635501,1742868643089,-500.0,0.00047945,120]
[356635502,1742868643098,-500.0,0.00047945,120]
[356635503,1742868643108,-500.0,0.00047945,120]
[356635504,1742868643117,-2792.72,0.00047945,120]
[356635505,1742868643126,-1619.85,0.00047945,2]
[356635506,1742868643135,-1283.0,0.00047945,120]
[356635507,1742868643145,-516.36,0.00047945,120]
[356635508,1742868643157,-151.76,0.0004799,2]
[356635509,1742868643166,-151.76,0.0004799,2]
[356635510,1742868643175,-570403.531953,0.00048,120]
[356635511,1742868643216,-939.63137312,0.00048,120]
[356635512,1742868643229,-470.89476816,0.00048,120]
[356635513,1742868643241,-438.65514724,0.00048,120]
[356635514,1742868643252,-8371.81416231,0.00048,120]
[356635515,1742868643360,-500.0,0.00046575,120]
[356635516,1742868643370,-500.0,0.00046849,120]
[356635517,1742868643380,-428.34763,0.00047123,120]
[356635518,1742868643392,-71.65237,0.00047123,120]
[356635519,1742868643402,-500.3976,0.00047397,120]
[356635520,1742868643412,-246.48149404,0.00048,120]
[356635521,1742868643423,-4104.2072107,0.00048,120]
[356635522,1742868643434,-495.052,0.00048,120]
[356635523,1742868643447,-8783.82544733,0.00048,120]
[356635524,1742868643626,-1080.6,0.00048,120]
[356635530,1742868646246,-999.99,0.0003158,2]
[356635531,1742868646256,-42611.66129999,0.00048,120]
[356635532,1742868646458,-677.12357228,0.00048,120]
[356635533,1742868646512,-4013.418134,0.00048,120]
[356635560,1742869522371,588.81563119,0.00031594,120]
[356635561,1742869528796,298.99141017,0.00031594,30]
[356635562,1742869532944,153.74353314,0.0002,120]
[356635563,1742869542892,12693.52454529,0.00031594,120]
[356635564,1742869574303,158.03165435,0.00031594,30]
[356635566,1742869634479,158.58449132,0.00031594,120]
[356635567,1742869675305,6548.18840504,0.00031594,120]
[356635570,1742869712625,339.68220899,0.00031594,30]
[356635571,1742869712876,1254.68760153,0.00031594,120]
[356635572,1742869713532,913.31406718,9.828e-05,2]
[356635573,1742869723256,168.04458495,0.00031594,120]
[356635575,1742869754703,-245.8407,0.000119,2]
[356635576,1742869754735,-206.1687455,0.00011973,2]
[356635578,1742869754762,-262.70856154,0.00011973,2]
[356635580,1742869754788,-421.39120885,0.00011973,2]
[356635581,1742869754817,-500.36393608,0.00011973,2]
[356635583,1742869754846,-1163.33353307,0.00012,2]
[356635585,1742869754882,-2799.80668504,0.00012,2]
[356635588,1742869754916,-2799.80668504,0.00012,2]
[356635589,1742869754950,-2799.80668504,0.00012,2]
[356635590,1742869754984,-2799.80668504,0.00012,2]
[356635591,1742869755194,-863.00883477,0.00012,2]
[356635606,1742869835322,-171.20333431,0.00011973,2]
[356635607,1742869835332,-300.0,0.00011999,2]
[356635608,1742869835342,-1424.69477489,0.00012,2]
[356635609,1742869835431,-453.12218389,0.00012,2]
[356635610,1742869835597,-10264.31449639,0.00012,2]
[356635611,1742869835813,-1928.8,0.00012,2]
[356635758,1742869837385,-5799.06923783,0.00012,2]
[356635773,1742869837494,-21351.90180848,0.00012,2]
[356635784,1742869837604,-419.229999,0.00012,2]
[356635790,1742869837661,-178675.16756676,0.00012,2]
[356635941,1742869839635,-1308.57481705,0.00012,2]
[356635943,1742869839647,-2976.20822404,0.00012,2]
[356635945,1742869839658,-3583.06796825,0.00012,2]
[356635955,1742869839749,-2658.04483987,0.00012,2]
[356635957,1742869839761,-592959.78654784,0.00012,2]
[356635990,1742869840067,-435.38038272,0.00012,2]
[356636220,1742869845588,-4749.60127804,0.00012,2]
[356636221,1742869845648,-832.193085,0.00012,2]
[356636222,1742869845660,-784.9815,0.00012,2]
[356636223,1742869845673,-1414.157248,0.00012,2]
[356636224,1742869845685,-545.152395,0.00012,2]
[356636225,1742869845697,-903.7147203,0.00012,2]
[356636226,1742869845709,-472.95900005,0.00012,2]
[356636227,1742869845720,-778.804,0.00012,2]
[356636228,1742869845815,-30254.16451058,0.00012,2]
[356636230,1742870131210,151.38876325,0.0002,120]
[356636252,1742871031699,-512.1989255,0.000118,2]
[356636253,1742871031709,-306.74126777,0.000118,2]
[356636254,1742871031718,-150.0,0.00011813,2]
[356636255,1742871031728,-150.0,0.00011899,2]
[356636256,1742871031737,-299.64960863,0.000119,2]
[356636257,1742871031751,-523.69749137,0.000119,2]
[356636258,1742871031760,-13.13819278,0.000119,2]
[356636259,1742871031805,-291.35370722,0.000119,2]
[356636260,1742871031814,-2056.87405549,0.000119,2]
[356636261,1742871031964,-4013.46843775,0.000119,2]
[356636262,1742871031976,-10672.19072931,0.000119,2]
[356636263,1742871032069,-556.26670477,0.000119,2]
[356636264,1742871032081,-67859.65187268,0.000119,2]
[356636265,1742871032090,-809.8418,0.000119,2]
[356636266,1742871032100,-26261.3321,0.000119,2]
[356636267,1742871032109,-25082.32615824,0.00012,2]
[356636268,1742871032122,-1302.66754437,0.00012,2]
[356636269,1742871032153,-126178.44265767,0.00012,2]
[356636277,1742871037583,-831.98387847,0.00011918,2]
[356636278,1742871037592,-23543.77041757,0.00012,2]
[356636279,1742871037741,-589.97551441,0.00012,2]
[356636465,1742871039923,-1371.2339,0.000119,2]
[356636467,1742871039933,-558.43311626,0.00012,2]
[356636469,1742871039944,-291.59270882,0.00012,2]
[356636761,1742871042839,-524.95242161,0.00012,2]
[356636789,1742871043100,-797.70304762,0.00012,2]
[356636791,1742871043112,-23973.95721219,0.00012,2]
[356636822,1742871045572,-334517.50700224,0.00012,2]
[356636823,1742871045626,-10471.784483,0.00012,2]
[356636824,1742871045783,-550.13999613,0.00012,2]
[356636825,1742871045795,-7201.90247,0.00012,2]
[356636840,1742872185846,1003.3,0.0002501,120]
[356636842,1742872235706,-1384.38157771,0.0001176,2]
[356636843,1742872235720,-812.09242229,0.0001176,2]
[356636844,1742872235731,-868.4059,0.000119,2]
[356636845,1742872235742,-300.0,0.00011917,2]
[356636846,1742872235754,-431.64968509,0.00011918,2]
[356636847,1742872235767,-191.12236195,0.00011918,2]
[356636848,1742872235777,-2208.80337085,0.00011918,2]
[356636849,1742872235790,-1098.60154289,0.00011918,2]
[356636850,1742872235805,-447.46047696,0.00011918,2]
[356636851,1742872235818,-630.37750662,0.00011918,2]
[356636852,1742872235829,-159.26864808,0.00011918,2]
[356636853,1742872235840,-511.71782036,0.00011918,2]
[356636854,1742872235853,-950.26546194,0.00011918,2]
[356636855,1742872235867,-1266.60175907,0.00011918,2]
[356636856,1742872235879,-628.42,0.00011918,2]
[356636857,1742872235891,-4967.75947265,0.00011918,2]
[356636858,1742872235902,-303.21656028,0.00011918,2]
[356636859,1742872235912,-351.06382613,0.00011999,2]
[356636860,1742872235925,-652.11263622,0.00011999,2]
[356636861,1742872235935,-150.0,0.00011999,2]
[356636862,1742872235946,-82462.21493629,0.00012,2]
[356636863,1742872235960,-3890.22791917,0.00012,2]
[356636864,1742872235974,-71887.11168317,0.00012,2]
[356636865,1742872235986,-413.21193929,0.00012,2]
[356636866,1742872235998,-2208.97184433,0.00012,2]
[356636867,1742872236011,-3056.0375105,0.00012,2]
[356636868,1742872236023,-7933.5579185,0.00012,2]
[356636869,1742872236035,-1139.681725,0.00012,2]
[356636870,1742872236061,-378926.83080354,0.00012,2]
[356636880,1742872237717,-614.6374616,0.00012,2]
[356636881,1742872237771,-2125.0,0.00012,2]
[356636882,1742872237783,-494.8543803,0.00012,2]
[356636883,1742872237824,-428.41993654,0.00012,2]
[356636884,1742872237836,-2000.6332396,0.00012,2]
[356636885,1742872237933,-12281.94514367,0.00012,2]
[356636886,1742872237947,-1029.578,0.00012,2]
[356636887,1742872237961,-20021.24182556,0.00012,2]
[356636896,1742872239980,-1033.13133556,0.000118,2]
[356636897,1742872239991,-2116.98259261,0.00012,2]
[356636898,1742872240004,-1034.6788,0.00012,2]
[356636899,1742872240017,-10695.57510827,0.00012,2]
[356636900,1742872240030,-337.6774465,0.00012,2]
[356636901,1742872240088,-1106.48039432,0.00012,2]
[356636902,1742872240143,-1025.06710056,0.00012,2]
[356636903,1742872240156,-7901.67657273,0.00012,2]
[356636904,1742872240168,-643.47365204,0.00012,2]
[356636905,1742872240200,-329.11111325,0.00012,2]
[356636906,1742872240212,-2335.29685159,0.00012,2]
[356636907,1742872240226,-5765.18510963,0.00012,2]
[356636908,1742872240239,-1134571.29113992,0.00012,2]
[356636909,1742872240249,-186.91691261,0.00012836,2]
[356636910,1742872240259,-150.0,0.00012936,2]
[356636911,1742872240269,-150.0,0.00012936,2]
[356636912,1742872240279,-150.0,0.00012936,2]
[356636913,1742872240289,-255.0,0.00013079,2]
[356636914,1742872240300,-196.77,0.00013507,2]
[356636915,1742872240310,-48986.32174259,0.00013534,2]
[356636916,1742872240320,-500.0,0.00013699,2]
[356636917,1742872240330,-500.0,0.00013699,2]
[356636918,1742872240340,-500.0,0.00013699,2]
[356636919,1742872240350,-500.0,0.00013699,2]
[356636920,1742872240360,-500.0,0.00013699,2]
[356636921,1742872240370,-500.0,0.00013699,2]
[356636922,1742872240382,-500.0,0.00013699,2]
[356636923,1742872240393,-500.0,0.00013699,2]
[356636924,1742872240403,-500.0,0.00013699,2]
[356636925,1742872240414,-500.0,0.00013699,2]
[356636926,1742872240424,-500.0,0.00013699,2]
[356636927,1742872240434,-500.0,0.00013699,2]
[356636928,1742872240444,-391.81126141,0.00013699,2]
[356636929,1742872240455,-500.0,0.00013699,2]
[356636930,1742872240465,-500.0,0.00013699,2]
[356636931,1742872240480,-500.0,0.00013699,2]
[356636932,1742872240490,-421.442545,0.000137,2]
[356636933,1742872240501,-219.64219397,0.000141,2]
[356636934,1742872240511,-348.0,0.00014255,2]
[356636935,1742872240522,-161.40386362,0.00014256,2]
[356636936,1742872240532,-153.46128748,0.00014256,2]
[356636937,1742872240543,-155.32858608,0.00014383,2]
[356636938,1742872240554,-500.0,0.00014383,2]
[356636939,1742872240726,-152.36451018,0.00014383,2]
[356636940,1742872240741,-500.0,0.00014383,2]
[356636941,1742872240751,-499.62999776,0.00014383,2]
[356636942,1742872240760,-156.04072024,0.00014586,2]
[356636943,1742872240771,-500.0,0.00014883,2]
[356636944,1742872240781,-751.21,0.00015391,2]
[356636945,1742872240790,-1885.34612056,0.00015694,2]
[356636946,1742872240801,-250.4649084,0.0001572,2]
[356636947,1742872240810,-584.83,0.0001572,2]
[356636948,1742872240820,-584.83,0.0001572,2]
[356636949,1742872240829,-584.83,0.0001572,2]
[356636950,1742872240838,-584.83,0.0001572,2]
[356636951,1742872240848,-584.83,0.0001572,2]
[356636952,1742872240858,-584.83,0.0001572,2]
[356636953,1742872240867,-584.83,0.0001572,2]
[356636954,1742872240877,-584.83,0.0001572,2]
[356636955,1742872240886,-584.83,0.0001572,2]
[356636956,1742872240896,-584.83,0.0001572,2]
[356636957,1742872240905,-372.44573211,0.00015808,2]
[356636958,1742872240915,-155.3710727,0.00015808,2]
[356636959,1742872240925,-150.0,0.00015956,2]
[356636960,1742872240934,-4385.24289731,0.00016027,2]
[356636961,1742872240943,-8324.76451394,0.00016027,2]
[356636962,1742872240953,-155.17549391,0.00016067,2]
[356636963,1742872240963,-661.0,0.00016276,2]
[356636964,1742872240974,-342.66,0.00016286,2]
[356636965,1742872240983,-308.05,0.00016312,2]